[Event "*** Titled Tuesday Blitz"]
[Site "Chess.com"]
[Date "2019.03.05"]
[Round "4"]
[White "politeplayer"]
[Black "OparinGrigoriy"]
[Result "0-1"]
[WhiteElo "2078"]
[BlackElo "2967"]
[TimeControl "180+2"]
[EndTime "13:53:57 PST"]
[Termination "OparinGrigoriy won by checkmate"]

1. e4 {[%clk 0:02:59.8]} 1... c6 {[%clk 0:03:01]} 2. d4 {[%clk 0:03:00.1]} 2...
d5 {[%clk 0:03:02.9]} 3. exd5 {[%clk 0:03:00.9]} 3... cxd5 {[%clk 0:03:04.8]} 4.
c4 {[%clk 0:03:02.2]} 4... Nf6 {[%clk 0:03:06.7]} 5. Nc3 {[%clk 0:03:02.9]} 5...
g6 {[%clk 0:03:08.3]} 6. Nf3 {[%clk 0:02:55.8]} 6... Bg7 {[%clk 0:03:09.5]} 7.
Be2 {[%clk 0:02:57]} 7... O-O {[%clk 0:03:10.5]} 8. O-O {[%clk 0:02:58.1]} 8...
Nc6 {[%clk 0:03:10.7]} 9. Re1 {[%clk 0:02:56.6]} 9... Bg4 {[%clk 0:03:07.3]} 10.
Be3 {[%clk 0:02:55.8]} 10... dxc4 {[%clk 0:03:07.8]} 11. Bxc4 {[%clk 0:02:53.2]}
11... Rc8 {[%clk 0:03:09.3]} 12. Bb3 {[%clk 0:02:34.2]} 12... Bxf3 {[%clk
0:03:04.9]} 13. Qxf3 {[%clk 0:02:34.5]} 13... Nxd4 {[%clk 0:03:06.3]} 14. Bxd4
{[%clk 0:02:31.8]} 14... Qxd4 {[%clk 0:03:08.2]} 15. Qxb7 {[%clk 0:02:29.1]}
15... e6 {[%clk 0:03:09.1]} 16. Rad1 {[%clk 0:02:06]} 16... Qh4 {[%clk
0:03:09.6]} 17. g3 {[%clk 0:01:41.6]} 17... Qh5 {[%clk 0:03:07.6]} 18. Qg2
{[%clk 0:01:18.1]} 18... a5 {[%clk 0:03:04.5]} 19. Rd4 {[%clk 0:01:09.7]} 19...
Rfd8 {[%clk 0:02:58]} 20. Rh4 {[%clk 0:01:00.5]} 20... Qc5 {[%clk 0:02:52.9]}
21. Rc4 {[%clk 0:00:57.2]} 21... Qb6 {[%clk 0:02:51.7]} 22. Rxc8 {[%clk
0:00:57.6]} 22... Rxc8 {[%clk 0:02:53.6]} 23. Na4 {[%clk 0:00:50.7]} 23... Qb4
{[%clk 0:02:53]} 24. Qf1 {[%clk 0:00:31.9]} 24... h5 {[%clk 0:02:53.7]} 25. Rxe6
{[%clk 0:00:25.4]} 25... fxe6 {[%clk 0:02:51.2]} 26. Bxe6+ {[%clk 0:00:25.2]}
26... Kh7 {[%clk 0:02:52.6]} 27. Bxc8 {[%clk 0:00:26.2]} 27... Qxa4 {[%clk
0:02:54.1]} 28. Be6 {[%clk 0:00:24.8]} 28... Qd4 {[%clk 0:02:54.4]} 29. b3
{[%clk 0:00:21.6]} 29... Ne4 {[%clk 0:02:53]} 30. Qe2 {[%clk 0:00:20.1]} 30...
Bh6 {[%clk 0:02:45.7]} 31. Bc4 {[%clk 0:00:18.3]} 31... Nxf2 {[%clk 0:02:45]}
32. Qe7+ {[%clk 0:00:17]} 32... Bg7 {[%clk 0:02:46]} 33. Qe8 {[%clk 0:00:12.9]}
33... Ng4+ {[%clk 0:02:43.5]} 34. Kg2 {[%clk 0:00:14.1]} 34... Qf2+ {[%clk
0:02:44.6]} 35. Kh3 {[%clk 0:00:15.5]} 35... Qxh2# {[%clk 0:02:46.5]} 0-1

[Event "*** Titled Tuesday Blitz"]
[Site "Chess.com"]
[Date "2019.03.05"]
[Round "4"]
[White "Poghosyan_Suren"]
[Black "ShimanovAlex"]
[Result "0-1"]
[WhiteElo "2481"]
[BlackElo "2819"]
[TimeControl "180+2"]
[EndTime "13:54:01 PST"]
[Termination "ShimanovAlex won by resignation"]

1. d4 {[%clk 0:02:59.9]} 1... Nf6 {[%clk 0:03:00.2]} 2. c4 {[%clk 0:02:59.3]}
2... g6 {[%clk 0:03:01.2]} 3. Nc3 {[%clk 0:03:00.3]} 3... Bg7 {[%clk 0:03:02.7]}
4. Nf3 {[%clk 0:03:01.5]} 4... O-O {[%clk 0:03:04.1]} 5. Bf4 {[%clk 0:03:02.7]}
5... d6 {[%clk 0:03:04.9]} 6. e3 {[%clk 0:03:03.9]} 6... Qe8 {[%clk 0:02:58.6]}
7. h3 {[%clk 0:03:01.8]} 7... Nfd7 {[%clk 0:02:57.3]} 8. Be2 {[%clk 0:02:59.5]}
8... e5 {[%clk 0:02:58.3]} 9. Bh2 {[%clk 0:02:58.5]} 9... Nc6 {[%clk 0:02:56.9]}
10. O-O {[%clk 0:02:58.6]} 10... f5 {[%clk 0:02:57]} 11. Rc1 {[%clk 0:02:54.3]}
11... Kh8 {[%clk 0:02:49.7]} 12. Nd5 {[%clk 0:02:50.7]} 12... Qd8 {[%clk
0:02:50.2]} 13. b4 {[%clk 0:02:51.4]} 13... exd4 {[%clk 0:02:26.5]} 14. exd4
{[%clk 0:02:47.6]} 14... Nf6 {[%clk 0:02:27.8]} 15. Nxf6 {[%clk 0:02:37.2]}
15... Qxf6 {[%clk 0:02:29.7]} 16. c5 {[%clk 0:02:13.7]} 16... f4 {[%clk
0:02:30.2]} 17. b5 {[%clk 0:01:57.5]} 17... Nxd4 {[%clk 0:02:30.6]} 18. Nxd4
{[%clk 0:01:53.1]} 18... Qxd4 {[%clk 0:02:32.5]} 19. cxd6 {[%clk 0:01:49.7]}
19... cxd6 {[%clk 0:02:32.9]} 20. Bf3 {[%clk 0:01:29.9]} 20... Qb6 {[%clk
0:02:24.3]} 21. Qd2 {[%clk 0:01:22]} 21... Be5 {[%clk 0:02:22.7]} 22. a4 {[%clk
0:01:22.9]} 22... a6 {[%clk 0:02:23.1]} 23. Rb1 {[%clk 0:01:08.3]} 23... axb5
{[%clk 0:02:04.3]} 24. Rxb5 {[%clk 0:01:08.3]} 24... Qa6 {[%clk 0:02:03.8]} 25.
Rfb1 {[%clk 0:00:54.1]} 25... Qxa4 {[%clk 0:02:02.2]} 26. Bxb7 {[%clk
0:00:54.3]} 26... Qxb5 {[%clk 0:01:59.5]} 27. Qd1 {[%clk 0:00:35.5]} 27... Qxb7
{[%clk 0:01:46]} 28. Rxb7 {[%clk 0:00:33.9]} 28... Bxb7 {[%clk 0:01:47.9]} 0-1

[Event "*** Titled Tuesday Blitz"]
[Site "Chess.com"]
[Date "2019.03.05"]
[Round "4"]
[White "Last7Samurai"]
[Black "MikaelyanArman"]
[Result "1-0"]
[WhiteElo "2689"]
[BlackElo "2721"]
[TimeControl "180+2"]
[EndTime "13:54:03 PST"]
[Termination "Last7Samurai won by resignation"]

1. e4 {[%clk 0:03:01.9]} 1... d6 {[%clk 0:03:01.3]} 2. d4 {[%clk 0:03:02.6]}
2... Nf6 {[%clk 0:03:02.5]} 3. Nc3 {[%clk 0:03:03.7]} 3... g6 {[%clk 0:03:03.9]}
4. f4 {[%clk 0:03:04.1]} 4... Bg7 {[%clk 0:03:04.9]} 5. a3 {[%clk 0:03:04.1]}
5... O-O {[%clk 0:03:06.1]} 6. Nf3 {[%clk 0:03:04.9]} 6... Bg4 {[%clk
0:02:59.1]} 7. h3 {[%clk 0:03:03.3]} 7... Bxf3 {[%clk 0:03:00.1]} 8. Qxf3 {[%clk
0:03:05.2]} 8... Nc6 {[%clk 0:02:59.9]} 9. Be3 {[%clk 0:03:06]} 9... e5 {[%clk
0:02:59.4]} 10. dxe5 {[%clk 0:03:06.9]} 10... dxe5 {[%clk 0:03:00.6]} 11. f5
{[%clk 0:03:08.4]} 11... Nd4 {[%clk 0:03:01]} 12. Qf2 {[%clk 0:03:09.3]} 12...
Nd7 {[%clk 0:02:47.6]} 13. g4 {[%clk 0:02:53.9]} 13... c6 {[%clk 0:02:22.7]} 14.
O-O-O {[%clk 0:02:31.3]} 14... b5 {[%clk 0:02:21.4]} 15. g5 {[%clk 0:02:19.3]}
15... f6 {[%clk 0:02:02.8]} 16. h4 {[%clk 0:02:18.8]} 16... a5 {[%clk
0:01:51.3]} 17. h5 {[%clk 0:02:14.7]} 17... fxg5 {[%clk 0:01:41.8]} 18. hxg6
{[%clk 0:02:12.8]} 18... h6 {[%clk 0:01:30.2]} 19. Ne2 {[%clk 0:02:10.5]} 19...
c5 {[%clk 0:01:19.2]} 20. Nc3 {[%clk 0:02:05.1]} 20... b4 {[%clk 0:01:01.7]} 21.
Bc4+ {[%clk 0:02:01.9]} 21... Kh8 {[%clk 0:01:03]} 22. Rxh6+ {[%clk 0:01:58.5]}
22... Bxh6 {[%clk 0:01:03.9]} 23. Qh2 {[%clk 0:01:59.9]} 23... Kg7 {[%clk
0:00:19.2]} 24. Qxh6+ {[%clk 0:02:00.3]} 24... Kxh6 {[%clk 0:00:15.7]} 25. Rh1+
{[%clk 0:02:02.2]} 1-0

[Event "*** Titled Tuesday Blitz"]
[Site "Chess.com"]
[Date "2019.03.05"]
[Round "4"]
[White "murmah2003"]
[Black "Chessialist"]
[Result "1-0"]
[WhiteElo "2540"]
[BlackElo "2493"]
[TimeControl "180+2"]
[EndTime "13:54:27 PST"]
[Termination "murmah2003 won by resignation"]

1. d4 {[%clk 0:03:01.9]} 1... Nf6 {[%clk 0:02:58.9]} 2. c4 {[%clk 0:02:56.6]}
2... e5 {[%clk 0:02:59.5]} 3. dxe5 {[%clk 0:02:54.7]} 3... Ng4 {[%clk
0:03:00.5]} 4. Nf3 {[%clk 0:02:56]} 4... Bc5 {[%clk 0:03:01.3]} 5. e3 {[%clk
0:02:55]} 5... Nc6 {[%clk 0:03:01.9]} 6. Be2 {[%clk 0:02:53.4]} 6... O-O {[%clk
0:03:02.7]} 7. O-O {[%clk 0:02:40.7]} 7... Ngxe5 {[%clk 0:02:54.9]} 8. Nxe5
{[%clk 0:02:40.5]} 8... Nxe5 {[%clk 0:02:55.3]} 9. Nc3 {[%clk 0:02:37.1]} 9...
a5 {[%clk 0:02:54.7]} 10. b3 {[%clk 0:02:16.3]} 10... Ra6 {[%clk 0:02:50.4]} 11.
Qd5 {[%clk 0:02:05]} 11... Qe7 {[%clk 0:02:41.5]} 12. Bb2 {[%clk 0:01:32.5]}
12... Rh6 {[%clk 0:02:29.6]} 13. Ne4 {[%clk 0:01:12.4]} 13... Qh4 {[%clk
0:02:18.8]} 14. Bxe5 {[%clk 0:00:58.8]} 14... Bb6 {[%clk 0:02:03.6]} 15. Bg3
{[%clk 0:00:57.1]} 15... Qe7 {[%clk 0:02:00.3]} 16. c5 {[%clk 0:00:57.8]} 16...
Ba7 {[%clk 0:02:01.1]} 17. Bxc7 {[%clk 0:00:54.9]} 17... Re8 {[%clk 0:01:47.9]}
18. Bf3 {[%clk 0:00:51.8]} 18... Re6 {[%clk 0:01:44.4]} 19. Bd6 {[%clk
0:00:48.5]} 19... Qh4 {[%clk 0:01:41.1]} 20. Ng3 {[%clk 0:00:49.8]} 20... g6
{[%clk 0:01:19]} 21. Rad1 {[%clk 0:00:47.2]} 21... a4 {[%clk 0:01:18]} 22. Rd4
{[%clk 0:00:46.3]} 22... Qh6 {[%clk 0:01:18.2]} 23. Rxa4 {[%clk 0:00:45.5]}
23... b6 {[%clk 0:01:13.5]} 24. Rxa7 {[%clk 0:00:45.6]} 24... bxc5 {[%clk
0:01:14.2]} 25. Qxc5 {[%clk 0:00:45.6]} 1-0

[Event "*** Titled Tuesday Blitz"]
[Site "Chess.com"]
[Date "2019.03.05"]
[Round "4"]
[White "vgyogi"]
[Black "Hieronymus00"]
[Result "1-0"]
[WhiteElo "2144"]
[BlackElo "2203"]
[TimeControl "180+2"]
[EndTime "13:54:28 PST"]
[Termination "vgyogi won by resignation"]

1. d4 {[%clk 0:03:01.9]} 1... Nf6 {[%clk 0:02:59.8]} 2. Bg5 {[%clk 0:03:01.6]}
2... c5 {[%clk 0:02:59.9]} 3. Bxf6 {[%clk 0:02:59.9]} 3... gxf6 {[%clk 0:03:00]}
4. d5 {[%clk 0:02:52.2]} 4... d6 {[%clk 0:02:58.1]} 5. c4 {[%clk 0:02:51.2]}
5... f5 {[%clk 0:02:56.1]} 6. Nc3 {[%clk 0:02:51.1]} 6... Bg7 {[%clk 0:02:57.3]}
7. e3 {[%clk 0:02:50.2]} 7... O-O {[%clk 0:02:54.1]} 8. Nf3 {[%clk 0:02:50.1]}
8... e5 {[%clk 0:02:48]} 9. dxe6 {[%clk 0:02:46.9]} 9... fxe6 {[%clk 0:02:48.6]}
10. Qc2 {[%clk 0:02:37.9]} 10... Nc6 {[%clk 0:02:46.8]} 11. a3 {[%clk
0:02:37.3]} 11... Qf6 {[%clk 0:02:22.5]} 12. Rd1 {[%clk 0:02:29.6]} 12... Rd8
{[%clk 0:02:17.8]} 13. Be2 {[%clk 0:02:24.4]} 13... a6 {[%clk 0:02:14]} 14. O-O
{[%clk 0:02:23.2]} 14... b6 {[%clk 0:02:02.2]} 15. Rd2 {[%clk 0:02:13.4]} 15...
Bb7 {[%clk 0:01:57.9]} 16. Rfd1 {[%clk 0:02:14.9]} 16... Qe7 {[%clk 0:01:47.5]}
17. Na4 {[%clk 0:01:58.6]} 17... Qc7 {[%clk 0:01:47.6]} 18. Qb3 {[%clk
0:01:52.2]} 18... b5 {[%clk 0:01:36.5]} 19. cxb5 {[%clk 0:01:52.6]} 19... axb5
{[%clk 0:01:37.4]} 20. Qxe6+ {[%clk 0:01:52.2]} 20... Kh8 {[%clk 0:01:27.4]} 21.
Ng5 {[%clk 0:01:31.3]} 21... Ne5 {[%clk 0:01:08.2]} 22. Qxf5 {[%clk 0:01:29.4]}
22... Ng6 {[%clk 0:00:39.3]} 23. Bxb5 {[%clk 0:01:19.2]} 23... Rf8 {[%clk
0:00:34.6]} 24. Qh3 {[%clk 0:01:19.6]} 24... h6 {[%clk 0:00:33.4]} 25. Rxd6
{[%clk 0:01:17.3]} 1-0

[Event "*** Titled Tuesday Blitz"]
[Site "Chess.com"]
[Date "2019.03.05"]
[Round "4"]
[White "GataKamsky1974"]
[Black "SF-96"]
[Result "1-0"]
[WhiteElo "2833"]
[BlackElo "2574"]
[TimeControl "180+2"]
[EndTime "13:54:46 PST"]
[Termination "GataKamsky1974 won by resignation"]

1. e4 {[%clk 0:03:01.9]} 1... e5 {[%clk 0:03:00.8]} 2. Nf3 {[%clk 0:03:02.3]}
2... Nc6 {[%clk 0:03:01.9]} 3. Bb5 {[%clk 0:03:02.8]} 3... a6 {[%clk 0:03:03]}
4. Ba4 {[%clk 0:03:03.9]} 4... Nf6 {[%clk 0:03:04]} 5. O-O {[%clk 0:03:05.5]}
5... b5 {[%clk 0:03:05.2]} 6. Bb3 {[%clk 0:03:06.3]} 6... Bc5 {[%clk 0:03:06.4]}
7. c3 {[%clk 0:03:06.2]} 7... d6 {[%clk 0:03:07.5]} 8. d4 {[%clk 0:03:07.7]}
8... Bb6 {[%clk 0:03:08.6]} 9. Re1 {[%clk 0:03:06.3]} 9... O-O {[%clk
0:03:00.2]} 10. h3 {[%clk 0:03:07.3]} 10... h6 {[%clk 0:03:00.3]} 11. Be3 {[%clk
0:03:07.6]} 11... exd4 {[%clk 0:02:27.1]} 12. cxd4 {[%clk 0:03:07.4]} 12... d5
{[%clk 0:02:22.4]} 13. exd5 {[%clk 0:02:30.1]} 13... Nxd5 {[%clk 0:02:22.7]} 14.
Bxd5 {[%clk 0:02:28.2]} 14... Qxd5 {[%clk 0:02:23.4]} 15. Nc3 {[%clk 0:02:30.1]}
15... Qd8 {[%clk 0:01:48.5]} 16. d5 {[%clk 0:02:29.8]} 16... Bxe3 {[%clk
0:01:49.6]} 17. dxc6 {[%clk 0:02:28]} 17... Bb6 {[%clk 0:01:35.5]} 18. Nd5
{[%clk 0:02:28]} 18... Be6 {[%clk 0:01:24.3]} 19. Nxb6 {[%clk 0:02:27.6]} 19...
cxb6 {[%clk 0:01:20.3]} 20. Nd4 {[%clk 0:02:27.6]} 20... Bd5 {[%clk 0:01:14.4]}
21. Qg4 {[%clk 0:02:27.5]} 21... Qg5 {[%clk 0:00:42.7]} 22. Qxg5 {[%clk
0:02:16.2]} 22... hxg5 {[%clk 0:00:43.7]} 23. c7 {[%clk 0:02:07.7]} 23... Rac8
{[%clk 0:00:37.2]} 24. Rac1 {[%clk 0:02:00.9]} 24... g6 {[%clk 0:00:21.5]} 25.
Re5 {[%clk 0:01:57]} 25... Bxa2 {[%clk 0:00:20.5]} 26. b3 {[%clk 0:01:56.9]}
26... f6 {[%clk 0:00:11]} 27. Re2 {[%clk 0:01:57.5]} 27... Bb1 {[%clk
0:00:10.5]} 28. Rxb1 {[%clk 0:01:57.2]} 28... Rxc7 {[%clk 0:00:12]} 29. Re6
{[%clk 0:01:50.1]} 29... Rd7 {[%clk 0:00:11.1]} 30. Nf3 {[%clk 0:01:49.2]} 30...
Kf7 {[%clk 0:00:07.6]} 31. Rxb6 {[%clk 0:01:49.4]} 31... Ra8 {[%clk 0:00:09.1]}
32. Rc1 {[%clk 0:01:49.5]} 1-0

[Event "*** Titled Tuesday Blitz"]
[Site "Chess.com"]
[Date "2019.03.05"]
[Round "4"]
[White "marianokar"]
[Black "TBergh98"]
[Result "0-1"]
[WhiteElo "2433"]
[BlackElo "2370"]
[TimeControl "180+2"]
[EndTime "13:54:47 PST"]
[Termination "TBergh98 won by resignation"]

1. c4 {[%clk 0:03:01.9]} 1... e5 {[%clk 0:03:00.7]} 2. Nc3 {[%clk 0:03:01.7]}
2... d6 {[%clk 0:03:00.7]} 3. g3 {[%clk 0:03:01.1]} 3... Nf6 {[%clk 0:03:02]} 4.
Nf3 {[%clk 0:03:02.6]} 4... g6 {[%clk 0:03:03.1]} 5. Bg2 {[%clk 0:03:03.7]} 5...
Bg7 {[%clk 0:03:04.6]} 6. d4 {[%clk 0:03:04.5]} 6... Nc6 {[%clk 0:03:04.2]} 7.
d5 {[%clk 0:03:04.1]} 7... Ne7 {[%clk 0:03:05]} 8. e4 {[%clk 0:03:04.7]} 8...
O-O {[%clk 0:03:06.5]} 9. O-O {[%clk 0:03:06.1]} 9... Nd7 {[%clk 0:03:05]} 10.
Ne1 {[%clk 0:03:07.4]} 10... f5 {[%clk 0:03:04.9]} 11. Nd3 {[%clk 0:03:08.7]}
11... a5 {[%clk 0:03:06.1]} 12. f4 {[%clk 0:03:05]} 12... Nf6 {[%clk 0:03:04.2]}
13. fxe5 {[%clk 0:03:04.6]} 13... dxe5 {[%clk 0:03:05.1]} 14. Nxe5 {[%clk
0:02:32.3]} 14... Nxe4 {[%clk 0:03:00.2]} 15. Nxe4 {[%clk 0:02:21.2]} 15... Bxe5
{[%clk 0:02:59.9]} 16. Ng5 {[%clk 0:02:18.7]} 16... Bd7 {[%clk 0:02:44.4]} 17.
Re1 {[%clk 0:02:07.1]} 17... Bf6 {[%clk 0:02:45.2]} 18. Ne6 {[%clk 0:02:05.9]}
18... Bxe6 {[%clk 0:02:46.2]} 19. Rxe6 {[%clk 0:02:06.7]} 19... Nc8 {[%clk
0:02:47.7]} 20. c5 {[%clk 0:02:00.4]} 20... a4 {[%clk 0:02:43.6]} 21. d6 {[%clk
0:01:53.1]} 21... cxd6 {[%clk 0:02:41.2]} 22. cxd6 {[%clk 0:01:54]} 22... Ra6
{[%clk 0:02:35.6]} 23. Bh6 {[%clk 0:01:26]} 23... Rf7 {[%clk 0:01:52.2]} 24. Bd5
{[%clk 0:01:07.1]} 24... Nxd6 {[%clk 0:01:42.7]} 25. Qe2 {[%clk 0:00:42.5]}
25... Bd4+ {[%clk 0:01:32.7]} 26. Kg2 {[%clk 0:00:38.5]} 26... Ne4 {[%clk
0:01:16.7]} 27. Rxe4 {[%clk 0:00:29.9]} 27... Qxd5 {[%clk 0:01:15.3]} 0-1

[Event "*** Titled Tuesday Blitz"]
[Site "Chess.com"]
[Date "2019.03.05"]
[Round "4"]
[White "Mbneu"]
[Black "witcher8"]
[Result "1-0"]
[WhiteElo "2250"]
[BlackElo "2361"]
[TimeControl "180+2"]
[EndTime "13:54:57 PST"]
[Termination "Mbneu won by checkmate"]

1. d4 {[%clk 0:02:56.9]} 1... Nf6 {[%clk 0:03:00.6]} 2. c4 {[%clk 0:02:57.9]}
2... g6 {[%clk 0:03:00.5]} 3. Nc3 {[%clk 0:02:58.4]} 3... Bg7 {[%clk 0:03:02]}
4. e4 {[%clk 0:02:58.9]} 4... d6 {[%clk 0:03:03.5]} 5. f4 {[%clk 0:02:59.9]}
5... O-O {[%clk 0:03:02.4]} 6. Nf3 {[%clk 0:03:00]} 6... c5 {[%clk 0:03:00.5]}
7. d5 {[%clk 0:03:01.1]} 7... e6 {[%clk 0:02:57.8]} 8. Be2 {[%clk 0:03:02.3]}
8... exd5 {[%clk 0:02:27.1]} 9. cxd5 {[%clk 0:03:04.2]} 9... Re8 {[%clk
0:01:44.6]} 10. e5 {[%clk 0:03:04.4]} 10... dxe5 {[%clk 0:01:35.6]} 11. fxe5
{[%clk 0:03:05.9]} 11... Ng4 {[%clk 0:01:36.4]} 12. e6 {[%clk 0:03:07.3]} 12...
fxe6 {[%clk 0:01:32.2]} 13. Bg5 {[%clk 0:03:08.7]} 13... Qb6 {[%clk 0:01:19.3]}
14. Qd2 {[%clk 0:03:08.4]} 14... Nd7 {[%clk 0:00:48.7]} 15. O-O {[%clk
0:03:04.9]} 15... Nde5 {[%clk 0:00:32.9]} 16. Nxe5 {[%clk 0:02:52.7]} 16... Nxe5
{[%clk 0:00:34]} 17. d6 {[%clk 0:02:54.2]} 17... Bd7 {[%clk 0:00:32.1]} 18. Ne4
{[%clk 0:02:45]} 18... Rf8 {[%clk 0:00:27.1]} 19. Be7 {[%clk 0:02:42.1]} 19...
Rf5 {[%clk 0:00:25]} 20. Ng3 {[%clk 0:02:26.9]} 20... Rxf1+ {[%clk 0:00:21.3]}
21. Rxf1 {[%clk 0:02:28.8]} 21... c4+ {[%clk 0:00:17]} 22. Kh1 {[%clk
0:02:28.2]} 22... Rc8 {[%clk 0:00:16.9]} 23. Ne4 {[%clk 0:02:24.9]} 23... Qc6
{[%clk 0:00:15.4]} 24. Nf6+ {[%clk 0:02:15]} 24... Kh8 {[%clk 0:00:15.1]} 25.
Qf4 {[%clk 0:02:07.1]} 25... Qc5 {[%clk 0:00:07.7]} 26. Qh4 {[%clk 0:02:00]}
26... h6 {[%clk 0:00:07]} 27. Ne4 {[%clk 0:01:43.3]} 27... Qd4 {[%clk
0:00:05.7]} 28. Bf6 {[%clk 0:01:43.4]} 28... Bc6 {[%clk 0:00:06.4]} 29. Bxg7+
{[%clk 0:01:43.1]} 29... Kxg7 {[%clk 0:00:07.4]} 30. Qf6+ {[%clk 0:01:44]} 30...
Kh7 {[%clk 0:00:08.6]} 31. Qe7+ {[%clk 0:01:41.9]} 31... Kh8 {[%clk 0:00:08.7]}
32. Rf8+ {[%clk 0:01:39.3]} 32... Rxf8 {[%clk 0:00:09]} 33. Qxf8+ {[%clk
0:01:40.2]} 33... Kh7 {[%clk 0:00:10.5]} 34. Nf6# {[%clk 0:01:39.6]} 1-0

[Event "*** Titled Tuesday Blitz"]
[Site "Chess.com"]
[Date "2019.03.05"]
[Round "4"]
[White "Rashad_Zeynalli"]
[Black "Msb2"]
[Result "0-1"]
[WhiteElo "2395"]
[BlackElo "2787"]
[TimeControl "180+2"]
[EndTime "13:55:05 PST"]
[Termination "Msb2 won on time"]

1. d4 {[%clk 0:03:01.9]} 1... d5 {[%clk 0:03:01.1]} 2. Bf4 {[%clk 0:03:01.8]}
2... c5 {[%clk 0:03:02.3]} 3. e3 {[%clk 0:03:02.9]} 3... Nc6 {[%clk 0:03:03.9]}
4. c3 {[%clk 0:03:04]} 4... Qb6 {[%clk 0:03:05.2]} 5. Qb3 {[%clk 0:03:02.6]}
5... c4 {[%clk 0:03:06.3]} 6. Qxb6 {[%clk 0:02:59.4]} 6... axb6 {[%clk
0:03:08.2]} 7. e4 {[%clk 0:02:47.3]} 7... Nf6 {[%clk 0:02:49.3]} 8. f3 {[%clk
0:02:42]} 8... b5 {[%clk 0:02:44.5]} 9. Nd2 {[%clk 0:02:40.4]} 9... e6 {[%clk
0:02:38.7]} 10. Ne2 {[%clk 0:02:13.9]} 10... b4 {[%clk 0:02:37.7]} 11. g4 {[%clk
0:01:55.8]} 11... b5 {[%clk 0:02:26.4]} 12. g5 {[%clk 0:01:52.8]} 12... Nd7
{[%clk 0:02:22.6]} 13. Be3 {[%clk 0:01:47.9]} 13... Nb6 {[%clk 0:02:22.2]} 14.
Bg2 {[%clk 0:01:42.9]} 14... b3 {[%clk 0:02:11.3]} 15. a3 {[%clk 0:01:39.6]}
15... b4 {[%clk 0:02:09.2]} 16. cxb4 {[%clk 0:01:36]} 16... Nxb4 {[%clk
0:02:09]} 17. Kf2 {[%clk 0:01:24.8]} 17... Nd3+ {[%clk 0:02:05]} 18. Kg3 {[%clk
0:00:57.1]} 18... Nxb2 {[%clk 0:02:06.9]} 19. Nc3 {[%clk 0:00:49.8]} 19... N2a4
{[%clk 0:02:04.9]} 20. Ndb1 {[%clk 0:00:39.5]} 20... Bd6+ {[%clk 0:02:02.4]} 21.
f4 {[%clk 0:00:37.8]} 21... Bb7 {[%clk 0:02:02.6]} 22. Nb5 {[%clk 0:00:27.1]}
22... Bb8 {[%clk 0:01:55.4]} 23. N1c3 {[%clk 0:00:28]} 23... Nxc3 {[%clk
0:01:48.7]} 24. Nxc3 {[%clk 0:00:28.6]} 24... Na4 {[%clk 0:01:49.8]} 25. Bd2
{[%clk 0:00:26.9]} 25... Nxc3 {[%clk 0:01:48.9]} 26. Bxc3 {[%clk 0:00:28]} 26...
Bd6 {[%clk 0:01:50.5]} 27. a4 {[%clk 0:00:27.4]} 27... Kd7 {[%clk 0:01:43.5]}
28. e5 {[%clk 0:00:23.8]} 28... Be7 {[%clk 0:01:44.3]} 29. a5 {[%clk 0:00:17.8]}
29... Ra6 {[%clk 0:01:45.1]} 30. h4 {[%clk 0:00:14.2]} 30... h5 {[%clk
0:01:45.4]} 31. Bf3 {[%clk 0:00:13.8]} 31... g6 {[%clk 0:01:46.7]} 32. Kf2
{[%clk 0:00:15]} 32... Rha8 {[%clk 0:01:47.9]} 33. Ke3 {[%clk 0:00:15.9]} 33...
Bd8 {[%clk 0:01:48.5]} 34. Ra4 {[%clk 0:00:15.5]} 34... Bxa5 {[%clk 0:01:49.3]}
35. Bxa5 {[%clk 0:00:13.7]} 35... Rxa5 {[%clk 0:01:51.2]} 36. Rb4 {[%clk
0:00:15.1]} 36... Bc6 {[%clk 0:01:51.6]} 0-1

[Event "*** Titled Tuesday Blitz"]
[Site "Chess.com"]
[Date "2019.03.05"]
[Round "4"]
[White "Maikrosoft63"]
[Black "Gentlejimmy7"]
[Result "0-1"]
[WhiteElo "2539"]
[BlackElo "2392"]
[TimeControl "180+2"]
[EndTime "13:55:10 PST"]
[Termination "Gentlejimmy7 won by resignation"]

1. e4 {[%clk 0:03:01.9]} 1... e5 {[%clk 0:02:56.6]} 2. Nf3 {[%clk 0:03:02.4]}
2... Nc6 {[%clk 0:02:57.5]} 3. Bc4 {[%clk 0:03:00]} 3... Bc5 {[%clk 0:02:57.9]}
4. d3 {[%clk 0:03:01]} 4... Nf6 {[%clk 0:02:58.5]} 5. c3 {[%clk 0:03:01.7]} 5...
d6 {[%clk 0:02:59.9]} 6. Nbd2 {[%clk 0:03:00.8]} 6... Bb6 {[%clk 0:03:01.2]} 7.
h3 {[%clk 0:02:57.8]} 7... O-O {[%clk 0:03:00.5]} 8. Nf1 {[%clk 0:02:58.8]} 8...
d5 {[%clk 0:03:00]} 9. exd5 {[%clk 0:02:59.4]} 9... Nxd5 {[%clk 0:03:01.2]} 10.
Ng3 {[%clk 0:03:00.9]} 10... Nf4 {[%clk 0:02:56.5]} 11. O-O {[%clk 0:02:59.9]}
11... Qf6 {[%clk 0:02:45.7]} 12. Ne4 {[%clk 0:02:57.6]} 12... Qg6 {[%clk
0:02:39.5]} 13. Bxf4 {[%clk 0:02:59]} 13... exf4 {[%clk 0:02:40.3]} 14. Kh2
{[%clk 0:03:00.6]} 14... Na5 {[%clk 0:02:12.9]} 15. Bb5 {[%clk 0:02:59.6]} 15...
f5 {[%clk 0:02:11.6]} 16. Ned2 {[%clk 0:02:57.7]} 16... Be6 {[%clk 0:02:05.4]}
17. Ne5 {[%clk 0:02:56.9]} 17... Qf6 {[%clk 0:02:02.1]} 18. Ndf3 {[%clk
0:02:57.9]} 18... g5 {[%clk 0:02:01]} 19. b4 {[%clk 0:02:54.2]} 19... Nc6 {[%clk
0:02:01.5]} 20. Nxc6 {[%clk 0:02:54.3]} 20... bxc6 {[%clk 0:01:59.6]} 21. Bxc6
{[%clk 0:02:55.7]} 21... Rad8 {[%clk 0:01:54.6]} 22. d4 {[%clk 0:02:56.2]} 22...
g4 {[%clk 0:01:55.2]} 23. Ne5 {[%clk 0:02:57]} 23... f3 {[%clk 0:01:43.7]} 24.
gxf3 {[%clk 0:02:55.4]} 24... Qh4 {[%clk 0:01:41.1]} 25. fxg4 {[%clk 0:02:51.4]}
25... fxg4 {[%clk 0:01:41.5]} 26. Nxg4 {[%clk 0:02:52]} 26... h5 {[%clk
0:01:20.6]} 27. Ne5 {[%clk 0:01:57.9]} 27... Qxh3+ {[%clk 0:01:01.4]} 28. Kg1
{[%clk 0:01:58.7]} 28... Rf5 {[%clk 0:00:41]} 29. Qc1 {[%clk 0:01:42]} 29... Kh7
{[%clk 0:00:30.4]} 30. f4 {[%clk 0:01:26.6]} 30... Rg8+ {[%clk 0:00:25]} 31. Kf2
{[%clk 0:01:26.8]} 31... Rxe5 {[%clk 0:00:21.6]} 32. fxe5 {[%clk 0:01:20]} 32...
Qg3+ {[%clk 0:00:22.9]} 33. Ke2 {[%clk 0:01:19.2]} 33... Bc4+ {[%clk 0:00:21.9]}
34. Kd2 {[%clk 0:01:20.2]} 34... Qd3+ {[%clk 0:00:22.5]} 0-1